bitfinex-derivatives/quotes_BTCF0:USTF0_20230402
["timestamp","ask_amount","ask_price","bid_price","bid_amount"]
[1680408848976,0.4421,28481.0,28480.0,0.016]
[1680408849369,0.4921,28481.0,28480.0,0.016]
[1680408849575,0.05,28480.0,28477.0,0.0696]
[1680408849779,0.3707,28478.0,28477.0,0.0696]
[1680408850078,0.4207,28478.0,28477.0,0.0696]
[1680408850274,0.3707,28478.0,28477.0,0.0696]
[1680408850869,0.3707,28478.0,28477.0,0.0846]
[1680408851375,0.3727,28478.0,28477.0,0.0846]
[1680408856877,0.3722,28478.0,28477.0,0.015]
[1680408861380,0.49836457,28478.0,28477.0,0.015]
[1680408861582,0.3722,28478.0,28477.0,0.015]
[1680408865880,0.49836457,28478.0,28477.0,0.015]
[1680408866473,0.3722,28478.0,28477.0,0.015]
[1680408867585,0.0715,28478.0,28477.0,0.015]
[1680408867779,0.3722,28478.0,28477.0,0.015]
[1680408873790,0.49836457,28478.0,28477.0,0.015]
[1680408873986,0.3722,28478.0,28477.0,0.015]
[1680408875778,0.49836457,28478.0,28477.0,0.015]
[1680408883187,0.49836457,28478.0,28473.0,0.3007]
[1680408883188,0.05,28477.0,28473.0,0.3007]
[1680408883390,0.1197,28477.0,28476.0,0.0702]
[1680408883590,0.0697,28477.0,28476.0,0.0702]
[1680408884293,0.0727,28477.0,28476.0,0.0712]
[1680408885287,0.3734,28477.0,28476.0,0.0712]
[1680408886891,0.3733,28477.0,28476.0,0.001]
[1680408890788,0.0726,28477.0,28476.0,0.001]
[1680408896808,0.003,28477.0,28476.0,0.1206]
[1680408901111,0.003,28477.0,28476.0,0.0706]
[1680408903716,0.003,28477.0,28476.0,0.1206]
[1680408904413,0.003,28477.0,28476.0,0.0706]
[1680408910505,0.003,28477.0,28476.0,0.1206]
[1680408910716,0.003,28477.0,28476.0,0.0706]
[1680408915518,0.003,28477.0,28476.0,0.1206]
[1680408918725,0.003,28477.0,28476.0,0.0706]
[1680408919319,0.003,28477.0,28476.0,0.1206]
[1680408921128,0.003,28477.0,28476.0,0.0706]
[1680408921428,0.003,28477.0,28476.0,0.1206]
[1680408922031,0.003,28477.0,28476.0,0.0706]
[1680408922825,0.003,28477.0,28476.0,0.1206]
[1680408923331,0.003,28477.0,28476.0,0.0706]
[1680408923534,0.003,28477.0,28476.0,0.1206]
[1680408925630,0.003,28477.0,28476.0,0.0706]
[1680408927726,0.0697,28478.0,28476.0,0.0706]
[1680408927929,0.001,28477.0,28476.0,0.001]
[1680408928230,0.001,28477.0,28476.0,0.0712]
[1680408930930,0.003,28477.0,28476.0,0.0712]
[1680408933435,0.003,28477.0,28476.0,0.07106997]
[1680408946343,0.003,28477.0,28476.0,0.12106997]
[1680408946538,0.003,28477.0,28476.0,0.07106997]
[1680408951038,0.003,28477.0,28476.0,0.12106997]
[1680408952247,0.003,28477.0,28476.0,0.07106997]
[1680408960553,0.003,28477.0,28476.0,0.12106997]
[1680408967566,0.12616457,28481.0,28478.0,0.1404]
[1680408967763,0.12616457,28481.0,28480.0,0.3709]
[1680408968952,0.12616457,28482.0,28480.0,0.3709]
[1680408969164,0.12616457,28482.0,28481.0,0.0702]
[1680408969359,0.12616457,28482.0,28481.0,0.1202]
[1680408970063,0.12616457,28482.0,28481.0,0.0742]
[1680408970262,0.12716457,28482.0,28481.0,0.0742]
[1680408973459,0.001,28482.0,28481.0,0.0742]
[1680408978274,0.001,28482.0,28481.0,0.1242]
[1680408980073,0.19586457,28483.0,28481.0,0.1202]
[1680408980378,0.002,28482.0,28481.0,0.054]
[1680408980571,0.002,28482.0,28481.0,0.1236]
[1680408983176,0.002,28482.0,28481.0,0.0736]
[1680408984177,0.002,28482.0,28481.0,0.1236]
[1680408984779,0.002,28482.0,28481.0,0.0736]
[1680408987282,0.19636457,28483.0,28481.0,0.0696]
[1680408987484,0.003,28482.0,28481.0,0.0736]
[1680408990786,0.19636457,28483.0,28481.0,0.0736]
[1680408990991,0.002,28482.0,28481.0,0.0736]
[1680408993890,0.002,28482.0,28481.0,0.1236]
[1680408999301,0.003,28482.0,28481.0,0.1236]
[1680409001704,0.003,28482.0,28481.0,0.4243]
[1680409004205,0.003,28482.0,28481.0,0.3743]
[1680409011009,0.003,28482.0,28481.0,0.4243]
[1680409012111,0.003,28482.0,28481.0,0.3743]
[1680409012501,0.003,28482.0,28481.0,0.37421975]
[1680409013109,0.12916457,28482.0,28481.0,0.37421975]
[1680409016210,0.12916457,28482.0,28481.0,0.07351975]
[1680409016518,0.12916457,28482.0,28481.0,0.37421975]
[1680409017212,0.12916457,28482.0,28481.0,0.07351975]
[1680409017417,0.12916457,28482.0,28481.0,0.37421975]
[1680409018014,0.19936457,28482.0,28481.0,0.004]
[1680409018216,0.0732,28482.0,28481.0,0.004]
[1680409018514,0.1232,28482.0,28481.0,0.004]
[1680409018709,0.0732,28482.0,28481.0,0.004]
[1680409019320,0.0702,28482.0,28479.0,0.0699]
[1680409019507,0.0697,28480.0,28479.0,0.0699]
[1680409020315,0.0707,28480.0,28479.0,0.0739]
[1680409027127,0.001,28480.0,28479.0,0.0742]
[1680409035230,0.0697,28481.0,28479.0,0.0702]
[1680409035530,0.002,28480.0,28479.0,0.054]
[1680409035731,0.002,28480.0,28479.0,0.1241]
[1680409037129,0.071,28481.0,28479.0,0.1241]
[1680409037325,0.002,28480.0,28479.0,0.1241]
[1680409037924,0.002,28480.0,28477.0,0.3007]
[1680409037925,0.4223,28480.0,28477.0,0.3007]
[1680409038123,0.0702,28478.0,28477.0,0.3007]
[1680409040042,0.002,28478.0,28477.0,0.3709]
[1680409041033,0.001,28478.0,28477.0,0.3709]
[1680409043337,0.002,28478.0,28477.0,0.3709]
[1680409043535,0.3007,28480.0,28477.0,0.3709]
[1680409043837,0.002,28478.0,28477.0,0.3007]
[1680409044036,0.002,28478.0,28477.0,0.3703]
[1680409044234,0.001,28478.0,28477.0,0.3703]
[1680409044831,0.001,28478.0,28477.0,0.0696]
[1680409046130,0.3007,28479.0,28477.0,0.0696]
[1680409046343,0.001,28478.0,28476.0,0.05]
[1680409046630,0.001,28478.0,28477.0,0.0699]
[1680409047037,0.3707,28479.0,28477.0,0.0699]
[1680409047241,0.001,28478.0,28476.0,0.05]
[1680409047441,0.001,28478.0,28477.0,0.0699]
[1680409050237,0.3707,28479.0,28477.0,0.0699]
[1680409050540,0.002,28478.0,28476.0,0.05]
[1680409050741,0.002,28478.0,28477.0,0.0701]
[1680409051733,0.3717,28479.0,28477.0,0.0701]
[1680409051932,0.3717,28479.0,28478.0,0.0696]
[1680409052142,0.3707,28479.0,28478.0,0.0696]
[1680409052536,0.3007,28479.0,28478.0,0.1402]
[1680409052848,0.3017,28479.0,28478.0,0.1402]
[1680409053141,0.3007,28479.0,28478.0,0.1402]
[1680409053343,0.3017,28479.0,28478.0,0.1402]
[1680409054542,0.3027,28479.0,28478.0,0.1402]
[1680409055343,0.002,28479.0,28478.0,0.1402]
[1680409056947,0.002,28479.0,28478.0,0.0702]
[1680409061548,0.002,28479.0,28476.0,0.05]
[1680409061853,0.0702,28478.0,28475.0,0.3007]
[1680409062044,0.0702,28478.0,28477.0,0.0696]
[1680409063555,0.0712,28478.0,28477.0,0.0696]
[1680409066949,0.001,28478.0,28477.0,0.0702]
[1680409071652,0.001,28478.0,28476.0,0.3007]
[1680409071956,0.001,28478.0,28474.0,0.05]
[1680409072157,0.001,28478.0,28477.0,0.0699]
[1680409072655,0.49699653,28480.0,28477.0,0.0699]
[1680409072859,0.001,28478.0,28476.0,0.05]
[1680409073046,0.05,28479.0,28477.0,0.0702]
[1680409073254,0.001,28478.0,28476.0,0.05]
[1680409073453,0.001,28478.0,28477.0,0.0702]
[1680409074260,0.3007,28479.0,28477.0,0.0702]
[1680409074559,0.3007,28479.0,28478.0,0.0702]
[1680409075355,0.3017,28479.0,28478.0,0.0702]
[1680409076962,0.3712,28479.0,28477.0,0.07]
[1680409077164,0.0697,28478.0,28477.0,0.07]
[1680409077466,0.1197,28478.0,28477.0,0.07]
[1680409077664,0.0697,28478.0,28477.0,0.07]
[1680409078564,0.0707,28478.0,28477.0,0.07]
[1680409081866,0.1207,28478.0,28475.0,0.0702]
[1680409082070,0.1207,28478.0,28474.0,0.0695]
[1680409082071,0.3707,28476.0,28474.0,0.0695]
[1680409082375,0.05,28475.0,28474.0,0.0695]
[1680409082872,0.4207,28476.0,28474.0,0.0695]
[1680409083067,0.3707,28476.0,28474.0,0.0695]
[1680409083469,0.3737,28476.0,28474.0,0.0695]
[1680409083666,0.3707,28476.0,28474.0,0.0695]
[1680409083876,0.3727,28476.0,28474.0,0.0695]
[1680409086980,0.07,28475.0,28473.0,0.0696]
[1680409087182,0.0697,28474.0,28473.0,0.0696]
[1680409088685,0.0697,28474.0,28473.0,0.06941649]
[1680409088888,0.0727,28474.0,28473.0,0.06941649]
[1680409089280,0.003,28474.0,28473.0,0.07]
[1680409089482,0.003,28474.0,28473.0,0.12]
[1680409092691,0.00286912,28474.0,28473.0,0.12]
[1680409097594,0.00286912,28474.0,28473.0,0.07]
[1680409101392,0.12609653,28479.0,28474.0,0.05]
[1680409101694,0.0697,28479.0,28478.0,0.05]
[1680409102488,0.0697,28479.0,28477.0,0.07]
[1680409104496,0.3007,28478.0,28477.0,0.073]
[1680409104799,0.0707,28479.0,28477.0,0.073]
[1680409105797,0.002,28478.0,28477.0,0.073]
[1680409106897,0.001,28479.0,28477.0,0.073]
[1680409107202,0.0702,28480.0,28478.0,0.0702]
[1680409107391,0.0702,28480.0,28479.0,0.0701]
[1680409108401,0.0712,28480.0,28479.0,0.0731]
[1680409116905,0.001,28480.0,28479.0,0.0726]
[1680409127008,0.001,28480.0,28479.0,0.073]
[1680409129713,0.42679653,28481.0,28479.0,0.07]
[1680409129911,0.001,28480.0,28479.0,0.003]
[1680409130111,0.001,28480.0,28479.0,0.123]
[1680409131913,0.001,28480.0,28479.0,0.1925]
[1680409133313,0.001,28480.0,28479.0,0.1425]
[1680409136922,0.001,28480.0,28479.0,0.0725]
[1680409146226,0.001,28480.0,28479.0,0.3732]
[1680409147224,0.001,28480.0,28479.0,0.4232]
[1680409152526,0.001,28480.0,28479.0,0.42310324]
[1680409156831,0.001,28480.0,28479.0,0.49310324]
[1680409162436,0.001,28480.0,28479.0,0.19240324]
[1680409162640,0.001,28480.0,28479.0,0.49310324]
[1680409162934,0.12609653,28483.0,28480.0,0.05]
[1680409163131,0.12609653,28484.0,28482.0,0.0696]
[1680409163335,0.12609653,28484.0,28483.0,0.1202]
[1680409164441,0.12609653,28484.0,28483.0,0.0702]
[1680409165036,0.14009653,28484.0,28483.0,0.0702]
[1680409166242,0.13309653,28484.0,28483.0,0.0702]
[1680409166442,0.007,28484.0,28483.0,0.0702]
[1680409166744,0.12709653,28484.0,28483.0,0.0742]
[1680409167647,0.12609653,28484.0,28483.0,0.0702]
[1680409167845,0.12709653,28484.0,28483.0,0.0742]
[1680409168050,0.001,28484.0,28483.0,0.0742]
[1680409168941,0.12609653,28485.0,28483.0,0.0702]
[1680409169147,0.001,28484.0,28483.0,0.004]
[1680409169444,0.001,28484.0,28483.0,0.0742]
[1680409171747,0.001,28484.0,28483.0,0.1242]
[1680409174941,0.001,28484.0,28483.0,0.0702]
[1680409175141,0.002,28484.0,28483.0,0.0742]
[1680409175850,0.002,28484.0,28483.0,0.1242]
[1680409176151,0.002,28484.0,28483.0,0.0742]
[1680409183156,0.002,28484.0,28483.0,0.1242]
[1680409184656,0.002,28484.0,28483.0,0.0742]
[1680409190362,0.001,28484.0,28483.0,0.0742]
[1680409193776,0.12709653,28484.0,28483.0,0.0742]
[1680409195076,0.001,28484.0,28483.0,0.0742]
[1680409195279,0.19709653,28484.0,28483.0,0.0742]
[1680409196179,0.19609653,28484.0,28483.0,0.0702]
[1680409196872,0.19709653,28484.0,28483.0,0.0742]
[1680409201479,0.05,28483.0,28480.0,0.0709]
[1680409201680,0.3704,28481.0,28479.0,0.0695]
[1680409201877,0.0702,28480.0,28479.0,0.0695]
[1680409204681,0.0712,28480.0,28479.0,0.0695]
[1680409204883,0.0702,28480.0,28479.0,0.0695]
[1680409205189,0.0712,28480.0,28479.0,0.0695]
[1680409205484,0.0722,28480.0,28479.0,0.0695]
[1680409207078,0.002,28480.0,28479.0,0.0702]
[1680409207281,0.003,28480.0,28479.0,0.1404]
[1680409207486,0.19559653,28485.0,28480.0,0.05]
[1680409207786,0.0695,28485.0,28484.0,0.0702]
[1680409208684,0.0695,28485.0,28484.0,0.0732]
[1680409208878,0.0705,28485.0,28484.0,0.0732]
[1680409209583,0.19669976,28485.0,28484.0,0.0732]
[1680409210485,0.07041886,28485.0,28484.0,0.0732]
[1680409213685,0.19661035,28485.0,28484.0,0.0732]
[1680409216885,0.12719149,28485.0,28484.0,0.0732]
[1680409217085,0.001,28485.0,28484.0,0.0732]
[1680409217593,0.12718296,28485.0,28484.0,0.0732]
[1680409222195,0.001,28485.0,28484.0,0.0732]
[1680409223992,0.001,28485.0,28484.0,0.3739]
[1680409232098,0.001,28485.0,28484.0,0.4239]
[1680409236895,0.001,28485.0,28484.0,0.4941]
[1680409237805,0.001,28485.0,28484.0,0.4441]
[1680409241207,0.001,28485.0,28484.0,0.1434]
[1680409245111,0.001,28485.0,28484.0,0.0732]
[1680409256312,0.0707,28485.0,28484.0,0.003]
[1680409257409,0.0697,28485.0,28482.0,0.0702]
[1680409257605,0.0702,28483.0,28482.0,0.0702]
[1680409258314,0.0702,28483.0,28482.0,0.0732]
[1680409259612,0.0702,28483.0,28482.0,0.0702]
[1680409259815,0.0732,28483.0,28482.0,0.0729996]
[1680409266824,0.003,28483.0,28482.0,0.0732]
[1680409271930,0.3037,28483.0,28482.0,0.0732]
[1680409273129,0.3017,28483.0,28482.0,0.0732]
[1680409276143,0.3714,28483.0,28482.0,0.003]
[1680409279140,0.3714,28483.0,28482.0,0.053]
[1680409279441,0.3714,28483.0,28482.0,0.003]
[1680409288549,0.3704,28483.0,28481.0,0.0695]
[1680409288745,0.3017,28483.0,28482.0,0.003]
[1680409288951,0.3717,28483.0,28482.0,0.003]
[1680409291554,0.071,28483.0,28482.0,0.003]
[1680409291751,0.3717,28483.0,28482.0,0.003]
[1680409292847,0.4217,28483.0,28482.0,0.003]
[1680409293251,0.05,28482.0,28481.0,0.06668907]
[1680409293558,0.1196,28482.0,28481.0,0.0702]
[1680409293950,0.0696,28482.0,28481.0,0.0702]
[1680409294857,0.0706,28482.0,28481.0,0.0702]
[1680409296158,0.3713,28482.0,28481.0,0.0702]
[1680409296957,0.3714,28482.0,28480.0,0.0702]
[1680409297158,0.0695,28481.0,28480.0,0.0702]
[1680409298453,0.0715,28481.0,28480.0,0.0702]
[1680409298954,0.3722,28481.0,28480.0,0.0702]
[1680409306866,0.3723,28481.0,28480.0,0.0696]
[1680409309769,0.3727,28481.0,28480.0,0.0702]
[1680409316563,0.072,28481.0,28480.0,0.0702]
[1680409316763,0.3727,28481.0,28480.0,0.0702]
[1680409316965,0.3729,28481.0,28480.0,0.0699]
[1680409317574,0.0722,28481.0,28480.0,0.0699]
[1680409317773,0.3729,28481.0,28480.0,0.0699]
[1680409318672,0.0722,28481.0,28480.0,0.0699]
[1680409318873,0.3729,28481.0,28480.0,0.0699]
[1680409326876,0.3724,28481.0,28479.0,0.0702]
[1680409331976,0.0717,28481.0,28479.0,0.0702]
[1680409337090,0.0717,28481.0,28480.0,0.0695]
[1680409338488,0.0697,28481.0,28480.0,0.0695]
[1680409338688,0.3724,28481.0,28480.0,0.0695]
[1680409339781,0.0717,28481.0,28480.0,0.0695]
[1680409340182,0.3724,28481.0,28480.0,0.0695]
[1680409340781,0.0717,28481.0,28480.0,0.0695]
[1680409340981,0.3724,28481.0,28480.0,0.0695]
[1680409341688,0.0717,28481.0,28480.0,0.0695]
[1680409343493,0.0717,28481.0,28480.0,0.06937455]
[1680409345281,0.0717,28481.0,28480.0,0.37007455]
[1680409345687,0.3724,28481.0,28480.0,0.06937455]
[1680409346897,0.3724,28481.0,28479.0,0.0696]
[1680409347087,0.0697,28480.0,28479.0,0.0696]
[1680409348088,0.0727,28480.0,28479.0,0.0696]
[1680409354899,0.4237,28480.0,28477.0,0.0695]
[1680409355101,0.0695,28478.0,28477.0,0.0695]
[1680409356491,0.0725,28478.0,28477.0,0.0695]
[1680409356896,0.3734,28478.0,28475.0,0.0702]
[1680409357195,0.0702,28476.0,28475.0,0.0702]
[1680409358804,0.3709,28476.0,28475.0,0.0702]
[1680409359301,0.3739,28476.0,28475.0,0.0702]
[1680409361804,0.0732,28476.0,28475.0,0.0702]
[1680409366907,0.073,28476.0,28474.0,0.0702]
[1680409367205,0.0697,28475.0,28474.0,0.0702]
[1680409367405,0.003,28476.0,28472.0,0.2106]
[1680409367594,0.003,28476.0,28475.0,0.0702]
[1680409368199,0.0702,28477.0,28475.0,0.0702]
[1680409368400,0.0702,28477.0,28476.0,0.07]
[1680409369507,0.0732,28477.0,28476.0,0.07]
[1680409370508,0.0702,28477.0,28476.0,0.07]
[1680409370804,0.0732,28477.0,28476.0,0.07]
[1680409372206,0.3739,28477.0,28476.0,0.07]
[1680409374409,0.0732,28477.0,28476.0,0.07]
[1680409377110,0.0727,28477.0,28476.0,0.0702]
[1680409383923,0.123,28477.0,28473.0,0.0702]
[1680409384212,0.3704,28474.0,28473.0,0.0702]
[1680409385507,0.3734,28474.0,28473.0,0.0702]
[1680409388109,0.0727,28474.0,28473.0,0.0702]
[1680409388314,0.3734,28474.0,28473.0,0.0702]
[1680409389409,0.3739,28474.0,28471.0,0.0695]
[1680409389709,0.07,28472.0,28471.0,0.0695]
[1680409390507,0.3733,28474.0,28471.0,0.0702]
[1680409390717,0.3733,28474.0,28473.0,0.0702]
[1680409392211,0.3733,28474.0,28473.0,0.07007541]
[1680409396924,0.3734,28474.0,28473.0,0.0696]
[1680409398317,0.3734,28474.0,28470.0,0.0702]
[1680409398515,0.1404,28470.0,28464.0,0.0696]
[1680409398721,0.3709,28465.0,28464.0,0.0696]
[1680409398920,0.3709,28465.0,28464.0,1e-08]
[1680409399715,0.3739,28465.0,28464.0,1e-08]
[1680409399915,0.3733,28465.0,28463.0,0.07]
[1680409400222,0.0702,28464.0,28463.0,0.07]
[1680409401523,0.0702,28464.0,28460.0,0.1202]
[1680409401524,0.1429,28464.0,28460.0,0.1202]
[1680409401725,0.0696,28461.0,28460.0,0.0702]
[1680409403424,0.0726,28461.0,28460.0,0.0702]
[1680409407029,0.0732,28461.0,28459.0,0.0702]
[1680409407223,0.0732,28461.0,28460.0,0.05]
[1680409407819,0.0702,28461.0,28460.0,0.05]
[1680409408026,0.0732,28461.0,28459.0,0.0702]
[1680409409723,0.0732,28461.0,28459.0,0.3709]
[1680409409922,0.0732,28461.0,28460.0,0.05]
[1680409413821,0.0732,28461.0,28459.0,0.3709]
[1680409415532,0.0732,28461.0,28459.0,0.0702]
[1680409416825,0.0732,28461.0,28459.0,0.0699]
[1680409417030,0.0702,28460.0,28459.0,0.0699]
[1680409418131,0.0732,28460.0,28459.0,0.0699]
[1680409420737,0.4434,28460.0,28456.0,0.3507]
[1680409420932,0.0702,28457.0,28456.0,0.3007]
[1680409421832,0.0702,28457.0,28456.0,0.3507]
[1680409422439,0.0732,28457.0,28456.0,0.3507]
[1680409423828,0.0732,28457.0,28456.0,0.3007]
[1680409424638,0.0732,28457.0,28456.0,0.3507]
[1680409426432,0.0732,28457.0,28456.0,0.3007]
[1680409426828,0.003,28457.0,28456.0,0.3709]
[1680409428234,0.0697,28458.0,28457.0,0.05]
[1680409428542,0.0697,28461.0,28457.0,0.1202]
[1680409428842,0.0697,28461.0,28460.0,0.0695]
[1680409429136,0.0697,28461.0,28460.0,0.1195]
[1680409429735,0.0727,28461.0,28460.0,0.1195]
[1680409429931,0.0705,28464.0,28460.0,0.1195]
[1680409429932,0.0702,28464.0,28460.0,0.12]
[1680409430138,0.0702,28464.0,28463.0,0.0701]
[1680409430442,0.0702,28464.0,28463.0,0.1201]
[1680409431038,0.0732,28464.0,28463.0,0.1261]
[1680409431644,0.003,28464.0,28463.0,0.1951]
[1680409443344,0.3007,28469.0,28464.0,0.05]
[1680409443539,0.3007,28469.0,28468.0,0.0702]
[1680409444951,0.3037,28469.0,28468.0,0.0782]
[1680409462163,0.003,28469.0,28468.0,0.3789]
[1680409465773,0.0702,28470.0,28468.0,0.3709]
[1680409465975,0.003,28469.0,28468.0,0.3077]
[1680409466271,0.003,28469.0,28468.0,0.3778]
[1680409466877,0.0725,28469.0,28468.0,0.3776]
[1680409469773,0.0725,28469.0,28468.0,0.0769]
[1680409476883,0.0727,28469.0,28468.0,0.007]
[1680409492798,0.1227,28469.0,28468.0,0.00685726]
[1680409492997,0.0727,28469.0,28468.0,0.00685726]
[1680409493994,0.1227,28469.0,28468.0,0.00685726]
[1680409494299,0.0727,28469.0,28468.0,0.00685726]
[1680409497004,0.1427,28469.0,28468.0,0.00685726]
[1680409506909,0.073,28469.0,28468.0,0.00685726]
[1680409510614,0.19918296,28469.0,28468.0,0.00685726]
[1680409512808,0.49988296,28469.0,28468.0,0.00685726]
[1680409528430,0.49988296,28469.0,28468.0,0.05685726]
[1680409528636,0.003,28469.0,28468.0,0.12705726]
[1680409533438,0.003,28469.0,28468.0,0.42775726]
[1680409536944,0.003,28469.0,28468.0,0.49795726]
[1680409540841,0.003,28469.0,28468.0,0.37775726]
[1680409545550,0.073,28469.0,28468.0,0.30755726]
[1680409545742,0.073,28469.0,28468.0,0.00685726]
[1680409546251,0.003,28469.0,28468.0,0.07705726]
[1680409546749,0.003,28469.0,28468.0,0.07690257]
[1680409546953,0.0732,28469.0,28468.0,0.07680257]
[1680409556855,0.0732,28469.0,28468.0,0.00670257]
[1680409557750,0.0731189,28469.0,28468.0,0.00670257]
[1680409557956,0.0731189,28469.0,28468.0,0.05670257]
[1680409558157,0.0731189,28469.0,28468.0,0.00670257]
[1680409574666,0.3738189,28469.0,28468.0,0.00670257]
[1680409576966,0.3738189,28469.0,28468.0,0.07690257]
[1680409585571,0.0731189,28469.0,28468.0,0.07690257]
[1680409586869,0.0731189,28469.0,28468.0,0.00670257]
[1680409605385,0.0731189,28469.0,28468.0,0.00648331]
[1680409616895,0.0726189,28469.0,28468.0,0.07668331]
[1680409636908,0.0729189,28469.0,28468.0,0.07638331]
[1680409646315,0.07278956,28469.0,28468.0,0.07638331]
[1680409646918,0.07298956,28469.0,28468.0,0.00648331]
[1680409649022,0.19917252,28469.0,28468.0,0.00648331]
[1680409649320,0.07298956,28469.0,28468.0,0.00648331]
[1680409650222,0.19917252,28469.0,28468.0,0.00648331]
[1680409650728,0.07298956,28469.0,28468.0,0.00648331]
[1680409657732,0.00278956,28469.0,28468.0,0.07598331]
[1680409671539,0.00278956,28469.0,28468.0,0.37668331]
[1680409674349,0.00278956,28469.0,28468.0,0.3702]
[1680409674651,0.003,28469.0,28468.0,0.3772]
[1680409682556,0.003,28469.0,28468.0,0.0765]
[1680409696265,0.003,28469.0,28468.0,0.0763846]
[1680409702877,0.003,28469.0,28468.0,0.1465846]
[1680409703073,0.003,28469.0,28468.0,0.1965846]
[1680409703273,0.12618296,28473.0,28469.0,0.1904]
[1680409703571,0.12618296,28473.0,28472.0,0.1202]
[1680409704765,0.12718296,28473.0,28472.0,0.1302]
[1680409704965,0.001,28473.0,28472.0,0.1302]
[1680409705479,0.12718296,28473.0,28472.0,0.1302]
[1680409705976,0.12818296,28473.0,28472.0,0.1302]
[1680409706577,0.002,28473.0,28472.0,0.1302]
[1680409718381,0.0722,28473.0,28472.0,0.01]
[1680409736894,0.0717,28473.0,28472.0,0.0799]
[1680409747000,0.0715,28473.0,28472.0,0.01]
[1680409748396,0.19768296,28473.0,28472.0,0.01]
[1680409753307,0.19768296,28473.0,28472.0,0.00989555]
[1680409758113,0.0715,28473.0,28472.0,0.00989555]
[1680409763319,0.19768296,28473.0,28472.0,0.00989555]
[1680409763615,0.0715,28473.0,28472.0,0.00989555]
[1680409763917,0.19768296,28473.0,28472.0,0.00989555]
[1680409764315,0.0715,28473.0,28472.0,0.00989555]
[1680409766019,0.002,28473.0,28472.0,0.07979555]
[1680409775015,0.002,28473.0,28472.0,0.38049555]
[1680409780218,0.0722,28473.0,28472.0,0.31059555]
[1680409783321,0.0722,28473.0,28472.0,0.00989555]
[1680409791026,0.19838296,28473.0,28472.0,0.00989555]
[1680409792631,0.0722,28473.0,28472.0,0.00989555]
[1680409799431,0.0722,28473.0,28472.0,0.00970476]
[1680409803535,0.19838296,28473.0,28472.0,0.00970476]
[1680409806233,0.0722,28473.0,28472.0,0.00970476]
[1680409806623,0.19838296,28473.0,28472.0,0.00970476]
[1680409808028,0.0722,28473.0,28472.0,0.00970476]
[1680409815441,0.45858296,28473.0,28472.0,0.00970476]
[1680409815650,0.05,28472.0,28469.0,0.3007]
[1680409815848,0.0697,28470.0,28469.0,0.3007]
[1680409816242,0.0697,28471.0,28469.0,0.3709]
[1680409816442,0.0697,28471.0,28470.0,0.07]
[1680409816636,0.0697,28471.0,28470.0,0.12]
[1680409818039,0.0727,28471.0,28470.0,0.121]
[1680409823251,0.0727,28471.0,28470.0,0.4217]
[1680409826956,0.003,28471.0,28470.0,0.4217]
[1680409831653,0.003,28471.0,28470.0,0.3717]
[1680409849962,0.003,28471.0,28470.0,0.071]
[1680409850266,0.003,28471.0,28470.0,0.3717]
[1680409862871,0.003,28471.0,28470.0,0.3716286]
[1680409866983,0.0732,28471.0,28470.0,0.3716286]
[1680409867785,0.0732,28471.0,28470.0,0.0709286]
[1680409879898,0.0712,28471.0,28470.0,0.0709286]
[1680409880397,0.0722,28471.0,28470.0,0.0709286]
[1680409886914,0.0717,28471.0,28470.0,0.071]
[1680409887298,0.0727,28471.0,28470.0,0.071]
[1680409888597,0.0727,28471.0,28470.0,0.07]
[1680409888804,0.0717,28471.0,28470.0,0.071]
[1680409889303,0.0727,28471.0,28470.0,0.071]
[1680409890212,0.0707,28471.0,28470.0,0.071]
[1680409891716,0.0717,28471.0,28470.0,0.071]
[1680409892313,0.0697,28471.0,28470.0,0.07]
[1680409892513,0.0707,28471.0,28470.0,0.071]
[1680409892717,0.0707,28471.0,28470.0,0.07]
[1680409893013,0.0717,28471.0,28470.0,0.071]
[1680409893412,0.0707,28471.0,28470.0,0.071]
[1680409894514,0.0717,28471.0,28470.0,0.071]
[1680409894714,0.0697,28471.0,28470.0,0.07]
[1680409894915,0.0717,28471.0,28470.0,0.071]
[1680409895916,0.0727,28471.0,28470.0,0.071]
[1680409896813,0.0727,28471.0,28470.0,0.001]
[1680409897007,0.0725,28471.0,28470.0,0.0712]
[1680409897211,0.0715,28471.0,28470.0,0.0712]
[1680409897514,0.0695,28471.0,28470.0,0.0702]
[1680409897713,0.0725,28471.0,28470.0,0.0712]
[1680409900314,0.0715,28471.0,28470.0,0.0712]
[1680409900714,0.0725,28471.0,28470.0,0.0712]
[1680409901113,0.0695,28471.0,28470.0,0.0702]
[1680409901317,0.0725,28471.0,28470.0,0.0712]
[1680409903319,0.0695,28471.0,28470.0,0.0702]
[1680409903516,0.0725,28471.0,28470.0,0.0712]
[1680409906212,0.0705,28471.0,28470.0,0.0712]
[1680409906617,0.0715,28471.0,28470.0,0.0712]
[1680409907017,0.002,28471.0,28470.0,0.0712]
[1680409914726,0.0697,28472.0,28470.0,0.0702]
[1680409914926,0.002,28471.0,28470.0,0.001]
[1680409915126,0.05,28471.0,28470.0,0.0702]
[1680409915329,0.053,28471.0,28470.0,0.1212]
[1680409915524,0.053,28471.0,28470.0,0.0712]
[1680409915720,0.003,28471.0,28470.0,0.0712]
[1680409916426,0.053,28471.0,28470.0,0.0712]